Workbook

Sheet Mississauga CBC Forecast
A1: PLANNING NUMBERS | D1: CIL Rate
D2: 10100 | G2: 0.1 | H2: 0.1 | I2: 0.2 | J2: 0.2 | K2: 0.3 | L2: 0.3
A3: Condos/Apartments | B3: Lower | C3: Upper | D3: Current Approach: CIL Rate | G3: 10% - Lower | H3: 10% - Upper | I3: 20% - Lower | J3: 20% - Upper | K3: 30% - Lower | L3: 30% - Upper
A4: Downtown Core
A5: 10 Year Units Forecast | B5: 7100 | C5: 7100 | D5: =ROUND($C5*D$2,-3) -> 71710000 | G5: =ROUND($C5/$C6*$B7*H$2,-3) -> 21300000 | H5: =ROUND($C5/$C6*$C7*H$2,-3) -> 28400000 | I5: =ROUND($C5/$C6*$B7*J$2,-3) -> 42600000 | J5: =ROUND($C5/$C6*$C7*J$2,-3) -> 56800000 | K5: =ROUND($C5/$C6*$B7*L$2,-3) -> 63900000 | L5: =ROUND($C5/$C6*$C7*L$2,-3) -> 85200000
A6: Av. density units/acre | B6: =C6 -> 500 | C6: 500
A7: Av. land value/acre | B7: 15000000 | C7: 20000000
A8: Av. land value/unit | B8: =B7/C6 -> 30000 | C8: =C7/C6 -> 40000
A9: Av. land value/sq. ft. (700 sq. ft. gross unit) | B9: =B8/(700*1.15) -> 37.26708075 | C9: =C8/(700*1.15) -> 49.68944099
A10: Charge Per unit | D10: =D5/$C5 -> 10100 | G10: =G5/$C5 -> 3000 | H10: 4000 | I10: 6000 | J10: 8000 | K10: 9000 | L10: 12000
A11: Major Nodes, Cooksville, Fairview, Hospital, Community Nodes
A12: 10 Year Units Forecast | B12: 5820 | C12: 5820 | D12: =ROUND($C12*D$2,-3) -> 58782000 | G12: =ROUND($C12/$C13*$B14*H$2,-3) -> 19954000 | H12: =ROUND($C12/$C13*$C14*H$2,-3) -> 29931000 | I12: =ROUND($C12/$C13*$B14*J$2,-3) -> 39909000 | J12: =ROUND($C12/$C13*$C14*J$2,-3) -> 59863000 | K12: =ROUND($C12/$C13*$B14*L$2,-3) -> 59863000 | L12: =ROUND($C12/$C13*$C14*L$2,-3) -> 89794000
A13: Av. density units/acre | B13: =C13 -> 350 | C13: 350
A14: Av. land value/acre | B14: 12000000 | C14: 18000000
A15: Av. land value/unit | B15: =ROUND(B14/B13,-2) -> 34300 | C15: =ROUND(C14/C13,-2) -> 51400
A16: Av. land value/sq. ft. (700 sq. ft. gross unit) | B16: =B15/(700*1.15) -> 42.60869565 | C16: =C15/(700*1.15) -> 63.85093168
A17: Charge Per unit | D17: =D12/$C12 -> 10100 | G17: =G12/$C12 -> 3428.522337 | H17: 5142.783505 | I17: 6857.216495 | J17: 10285.73883 | K17: 10285.73883 | L17: 15428.52234
A18: Neighbourhoods
A19: 10 Year Units Forecast | B19: 1280 | C19: 1280 | D19: =ROUND($C19*D$2,-3) -> 12928000 | G19: =ROUND($C19/$C20*$B21*H$2,-3) -> 6400000 | H19: =ROUND($C19/$C20*$C21*H$2,-3) -> 9600000 | I19: =ROUND($C19/$C20*$B21*J$2,-3) -> 12800000 | J19: =ROUND($C19/$C20*$C21*J$2,-3) -> 19200000 | K19: =ROUND($C19/$C20*$B21*L$2,-3) -> 19200000 | L19: =ROUND($C19/$C20*$C21*L$2,-3) -> 28800000
A20: Av. density units/acre | B20: =C20 -> 80 | C20: 80
A21: Av. land value/acre | B21: 4000000 | C21: 6000000
A22: Av. land value/unit | B22: =B21/C20 -> 50000 | C22: =C21/C20 -> 75000
A23: Av. land value/sq. ft. (700 sq. ft. gross unit) | B23: =B22/(700*1.15) -> 62.11180124 | C23: =C22/(700*1.15) -> 93.16770186
A24: Charge Per unit | D24: =D19/$C19 -> 10100 | G24: =G19/$C19 -> 5000 | H24: 7500 | I24: 10000 | J24: 15000 | K24: 15000 | L24: 22500
A26: ="Total "&A3 -> Total Condos/Apartments | B26: =B5+B12+B19 -> 14200 | C26: 14200 | D26: =D5+D12+D19 -> 143420000 | G26: 47654000 | H26: 67931000 | I26: 95309000 | J26: 135863000 | K26: 142963000 | L26: 203794000
A28: Rows, Stacked, Back-to-Back | B28: =B3 -> Lower | C28: Upper | D28: Current Approach: CIL Rate | G28: 10% - Lower | H28: 10% - Upper | I28: 20% - Lower | J28: 20% - Upper | K28: 30% - Lower | L28: 30% - Upper
A29: Downtown Core
A30: 10 Year Units Forecast | B30: 340 | C30: 340 | D30: =ROUND($C30*D$2,-3) -> 3434000 | G30: =ROUND($C30/$C31*$B32*H$2,-3) -> 3022000 | H30: =ROUND($C30/$C31*$C32*H$2,-3) -> 4533000 | I30: =ROUND($C30/$C31*$B32*J$2,-3) -> 6044000 | J30: =ROUND($C30/$C31*$C32*J$2,-3) -> 9067000 | K30: =ROUND($C30/$C31*$B32*L$2,-3) -> 9067000 | L30: =ROUND($C30/$C31*$C32*L$2,-3) -> 13600000
A31: Av. density units/acre | B31: =C31 -> 45 | C31: 45
A32: Av. land value/acre | B32: 4000000 | C32: 6000000
A33: Av. land value/unit | B33: =B32/C31 -> 88888.88889 | C33: =C32/C31 -> 133333.3333
A34: Charge Per unit | D34: =D30/$C30 -> 10100 | G34: =G30/$C30 -> 8888.235294 | H34: 13332.35294 | I34: 17776.47059 | J34: 26667.64706 | K34: 26667.64706 | L34: 40000
A35: Major Nodes, Cooksville, Fairview, Hospital, Community Nodes
A36: 10 Year Units Forecast | B36: 540 | C36: 540 | D36: =ROUND($C36*D$2,-3) -> 5454000 | G36: =ROUND($C36/$C37*$B38*H$2,-3) -> 4800000 | H36: =ROUND($C36/$C37*$C38*H$2,-3) -> 7200000 | I36: =ROUND($C36/$C37*$B38*J$2,-3) -> 9600000 | J36: =ROUND($C36/$C37*$C38*J$2,-3) -> 14400000 | K36: =ROUND($C36/$C37*$B38*L$2,-3) -> 14400000 | L36: =ROUND($C36/$C37*$C38*L$2,-3) -> 21600000
A37: Av. density units/acre | B37: =C37 -> 45 | C37: 45
A38: Av. land value/acre | B38: 4000000 | C38: 6000000
A39: Av. land value/unit | B39: =B38/C37 -> 88888.88889 | C39: =C38/C37 -> 133333.3333
A40: Charge Per unit | D40: =D36/$C36 -> 10100 | G40: =G36/$C36 -> 8888.888889 | H40: 13333.33333 | I40: 17777.77778 | J40: 26666.66667 | K40: 26666.66667 | L40: 40000
A41: Neighbourhoods
A42: 10 Year Units Forecast | B42: 1530 | C42: 1530 | D42: =ROUND($C42*D$2,-3) -> 15453000 | G42: =ROUND($C42/$C43*$B44*H$2,-3) -> 20400000 | H42: =ROUND($C42/$C43*$C44*H$2,-3) -> 30600000 | I42: =ROUND($C42/$C43*$B44*J$2,-3) -> 40800000 | J42: =ROUND($C42/$C43*$C44*J$2,-3) -> 61200000 | K42: =ROUND($C42/$C43*$B44*L$2,-3) -> 61200000 | L42: =ROUND($C42/$C43*$C44*L$2,-3) -> 91800000
A43: Av. density units/acre | B43: =C43 -> 30 | C43: 30
A44: Av. land value/acre | B44: 4000000 | C44: 6000000
A45: Av. land value/unit | B45: =B44/C43 -> 133333.3333 | C45: =C44/C43 -> 200000
A46: Charge Per unit | D46: =D42/$C42 -> 10100 | G46: =G42/$C42 -> 13333.33333 | H46: 20000 | I46: 26666.66667 | J46: 40000 | K46: 40000 | L46: 60000
A48: ="Total "&A28 -> Total Rows, Stacked, Back-to-Back | B48: =B30+B36+B42 -> 2410 | C48: 2410 | D48: 24341000 | G48: 28222000 | H48: 42333000 | I48: 56444000 | J48: 84667000 | K48: =K30+K36+K42 -> 84667000 | L48: 127000000
A50: Section 37 | D50: =ROUND(3000000*10,-3) -> 30000000
A51: DC Impact | D51: 1000000
A52: TOTAL HIGH AND MID DENSITY INCL S. 37 | B52: =B48+B26 -> 16610 | C52: =C48+C26 -> 16610 | D52: =D48+D26+D50+D51 -> 198761000 | G52: =G48+G26 -> 75876000 | H52: 110264000 | I52: 151753000 | J52: 220530000 | K52: 227630000 | L52: 330794000
A54: Singles/Semis | B54: =B28 -> Lower | C54: =C28 -> Upper | D54: Current Approach: 5% | E54: 5% - Lower | F54: 5% - Upper | G54: =G28 -> 10% - Lower | H54: 10% - Upper | I54: 20% - Lower | J54: 20% - Upper | K54: 30% - Lower | L54: 30% - Upper
A55: Greenfield Development
A56: 10 Year Units Forecast | B56: 220 | C56: 220
A57: Av. cost per lot (42 ft frontage) | B57: =12000*42 -> 504000 | C57: =15000*42 -> 630000 | D57: =0.05*AVERAGE(B57:C57)*C56 -> 6237000 | E57: =ROUND(0.05*B56*B57,-3) -> 5544000 | F57: =ROUND(0.05*C56*C57,-3) -> 6930000 | G57: =G$2*$B57*$B56 -> 11088000 | H57: =H$2*$C57*$C56 -> 13860000 | I57: =I$2*$B57*$B56 -> 22176000 | J57: =J$2*$C57*$C56 -> 27720000 | K57: =K$2*$B57*$B56 -> 33264000 | L57: =L$2*$C57*$C56 -> 41580000
A58: Charge Per unit | D58: =D57/$C56 -> 28350 | E58: =E57/$C56 -> 25200 | F58: 31500 | G58: =G57/$C56 -> 50400 | H58: 63000 | I58: 100800 | J58: 126000 | K58: 151200 | L58: 189000
A60: Infill and Severance
A61: 10 Year Units Forecast (20% in Port Credit) | B61: 870 | C61: 870
A62: Av. cost per lot (42 frontage) | B62: =C57 -> 630000 | C62: =26000*42 -> 1092000 | D62: =ROUND(0.05*AVERAGE(B62:C62)*C61,-3) -> 37454000 | E62: =ROUND(0.05*B61*B62,-3) -> 27405000 | F62: =ROUND(0.05*C61*C62,-3) -> 47502000 | G62: =G$2*$B62*$B61 -> 54810000 | H62: =H$2*$C62*$C61 -> 95004000 | I62: =I$2*$B62*$B61 -> 109620000 | J62: =J$2*$C62*$C61 -> 190008000 | K62: =K$2*$B62*$B61 -> 164430000 | L62: =L$2*$C62*$C61 -> 285012000
A63: Charge Per unit | D63: =D62/$C61 -> 43050.57471 | E63: =E62/$C61 -> 31500 | F63: 54600 | G63: =G62/$C61 -> 63000 | H63: =H62/$C61 -> 109200 | I63: =I62/$C61 -> 126000 | J63: =J62/$C61 -> 218400 | K63: =K62/$C61 -> 189000 | L63: =L62/$C61 -> 327600
A65: TOTAL SINGLES AND SEMIS | B65: =B56+B61 -> 1090 | C65: =C56+C61 -> 1090 | D65: =D57+D62 -> 43691000 | E65: 32949000 | F65: 54432000 | G65: 65898000 | H65: 108864000 | I65: 131796000 | J65: 217728000 | K65: 197694000 | L65: 326592000
A68: GRAND TOTAL RESIDENTIAL | B68: =B52+B65 -> 17700 | C68: =C52+C65 -> 17700 | D68: =D65+D52 -> 242452000 | E68: =E65+D52 -> 231710000 | F68: =F65+D52 -> 253193000 | G68: 141774000 | H68: 219128000 | I68: 283549000 | J68: 438258000 | K68: 425324000 | L68: 657386000
A70: NON-RESIDENTIAL | B70: Lower | C70: Upper | D70: Current Approach: 5%, 2% | E70: 5%, 2% - Lower | F70: 5%, 2% - Upper | G70: =G54 -> 10% - Lower | H70: 10% - Upper | I70: 20% - Lower | J70: 20% - Upper | K70: 30% - Lower | L70: 30% - Upper
A72: "Other" Non-Residential Acres 10-Year Forecast (60% of DC forecast, 1.5 FSI) | B72: =385779*0.6*10.7639/43560/1.5 -> 38.13118988 | C72: =B72 -> 38.13118988
A73: Av. land value/acre | B73: 2000000 | C73: 6000000 | D73: =ROUND(AVERAGE(B73:C73)*C72*0.05,-3) -> 7626000 | E73: =ROUND(B73*B72*0.05,-3) -> 3813000 | F73: =ROUND(C73*C72*0.05,-3) -> 11439000 | G73: =ROUND(G$2*$B73*$B72,-3) -> 7626000 | H73: =ROUND(H$2*$C73*$C72,-3) -> 22879000 | I73: =ROUND(I$2*$B73*$B72,-3) -> 15252000 | J73: =ROUND(J$2*$C73*$C72,-3) -> 45757000 | K73: =ROUND(K$2*$B73*$B72,-3) -> 22879000 | L73: =ROUND(L$2*$C73*$C72,-3) -> 68636000
A74: Charge Per Acre | D74: =ROUND((D73/$C72),-3) -> 200000 | E74: =ROUND((E73/$C72),-3) -> 100000 | F74: 300000 | G74: =ROUND((G73/$C72),-3) -> 200000 | H74: 600000 | I74: 400000 | J74: 1200000 | K74: 600000 | L74: 1800000
A76: Non-Res Acres (Chargeable) 10 Year Forecast (60% of DC forecast, 0.5 FSI) | B76: =(174840+1078550)*0.6*10.7639/43560/0.5 -> 371.6629372 | C76: =B76 -> 371.6629372
A77: Av. land value/acre | B77: 1500000 | C77: 3000000 | D77: =ROUND(AVERAGE(B77:C77)*C76*0.02,-3) -> 16725000 | E77: =ROUND(B77*B76*0.02,-3) -> 11150000 | F77: =ROUND(C77*C76*0.02,-3) -> 22300000 | G77: =ROUND(G$2*$B77*$B76,-3) -> 55749000 | H77: =ROUND(H$2*$C77*$C76,-3) -> 111499000 | I77: =ROUND(I$2*$B77*$B76,-3) -> 111499000 | J77: =ROUND(J$2*$C77*$C76,-3) -> 222998000 | K77: =ROUND(K$2*$B77*$B76,-3) -> 167248000 | L77: =ROUND(L$2*$C77*$C76,-3) -> 334497000
A78: Charge Per Acre | D78: =ROUND((D77/$C76),-3) -> 45000 | E78: =ROUND((E77/$C76),-3) -> 30000 | F78: =ROUND((F77/$C76),-3) -> 60000 | G78: =ROUND((G77/$C76),-3) -> 150000 | H78: =ROUND((H77/$C76),-3) -> 300000 | I78: =ROUND((I77/$C76),-3) -> 300000 | J78: =ROUND((J77/$C76),-3) -> 600000 | K78: =ROUND((K77/$C76),-3) -> 450000 | L78: =ROUND((L77/$C76),-3) -> 900000
A80: GRAND TOTAL NON-RESIDENTIAL | B80: =B72+B76 -> 409.7941271 | C80: =C72+C76 -> 409.7941271 | D80: =D73+D77 -> 24351000 | E80: =E73+E77 -> 14963000 | F80: 33739000 | G80: =G73+G77 -> 63375000 | H80: 134378000 | I80: 126751000 | J80: 268755000 | K80: =K73+K77 -> 190127000 | L80: 403133000
A82: TOTAL ALL USES | D82: =D80+D68 -> 266803000 | E82: =E80+E68 -> 246673000 | F82: 286932000 | G82: =G80+G68 -> 205149000 | H82: 353506000 | I82: 410300000 | J82: 707013000 | K82: =K80+K68 -> 615451000 | L82: 1060519000
A83: % High and Mid rise | D83: =D52/D82 -> 0.7449728826 | G83: =G52/G82 -> 0.3698580056 | H83: 0.3119154979
A84: What if status quo for all uses but 20% CBC for high and mid density res | D84: =D82 -> 266803000 | I84: =I52+$D$65+$D$80 -> 219795000 | J84: =J52+$D$65+$D$80 -> 288572000
A85: What if status quo for all uses but 10% for mid density and 30% for high density | D85: =D82 -> 266803000 | K85: =K26+G48+E65+E80 -> 219097000 | L85: =L26+H48+F65+F80 -> 334298000
D86: =D80+D65+D48+D26 -> 235803000 | G86: =D86*0.4 -> 94321200
A87: Development Type | C87: % of Future Development | D87: # of units (2020-2029) 10 Year | H87: Finance adjusted forecast
A88: Low Rise | D88: 1425 | H88: 230
A89: Mid Rise – Rows and other multiples | D89: 3156 | H89: 1220
C90: DT 14% | D90: 441.84 | H90: 170.8
C91: MN 15% | D91: 473.4 | H91: 183
C92: CN 7% | D92: 220.92 | H92: 85.4
C93: NHD 64% | D93: 2019.84 | H93: 780.8
A94: High Rise - Apartments | D94: 18519 | H94: 11304
C95: DT 70% | D95: DT 12,963 (13,000) | H95: 7912.8
C96: DT Core – 50% | D96: 9,260 (9,300) | H96: 5652
C97: DT Non-core – 20% | D97: 3,704 (3,700) | H97: 2260.8
C98: MN 17% | H98: 1921.68
C99: CN 4% | H99: 452.16
C100: NHD 9% | H100: 1017.36
C101: Source: 2013 Mississauga Growth Forecasts | D101: Source: 2019 DC Background Study
D102: =D82-($D$50+$D$51) -> 235803000 | E102: =E82-($D$50+$D$51) -> 215673000 | F102: =F82-($D$50+$D$51) -> 255932000
